bitfinex-derivatives/quotes_BTCF0:USTF0_20230702
["timestamp","ask_amount","ask_price","bid_price","bid_amount"]
[1688300510467,0.4339208,30575.0,30574.0,0.02294554]
[1688300517764,0.42469111,30575.0,30574.0,0.02294554]
[1688300518362,0.4339208,30575.0,30574.0,0.02294554]
[1688300519369,0.42469111,30575.0,30574.0,0.02294554]
[1688300520380,0.4339208,30575.0,30574.0,0.02294554]
[1688300523674,0.82664288,30575.0,30574.0,0.02294554]
[1688300525174,0.4339208,30575.0,30574.0,0.02294554]
[1688300546194,0.42469111,30575.0,30574.0,0.02294554]
[1688300546995,0.4339208,30575.0,30574.0,0.02294554]
[1688300549507,0.4142968,30575.0,30574.0,0.02294554]
[1688300551199,0.40506711,30575.0,30574.0,0.02294554]
[1688300551601,0.4142968,30575.0,30574.0,0.02294554]
[1688300552506,0.4339208,30575.0,30574.0,0.02294554]
[1688300553310,0.4142968,30575.0,30574.0,0.02294554]
[1688300554906,0.40506711,30575.0,30574.0,0.02294554]
[1688300555214,0.08456711,30575.0,30574.0,0.02294554]
[1688300557716,0.0937968,30575.0,30574.0,0.02294554]
[1688300558115,0.08456711,30575.0,30574.0,0.02294554]
[1688300558603,0.0937968,30575.0,30574.0,0.02294554]
[1688300558801,0.1134208,30575.0,30574.0,0.02294554]
[1688300559010,0.08456711,30575.0,30574.0,0.02294554]
[1688300560213,0.0937968,30575.0,30574.0,0.02294554]
[1688300560618,0.08456711,30575.0,30574.0,0.02294554]
[1688300564826,0.08456711,30575.0,30574.0,0.04117523]
[1688300566014,0.08456711,30575.0,30574.0,0.38374554]
[1688300566311,0.10419111,30575.0,30574.0,0.02294554]
[1688300566516,0.10419111,30575.0,30574.0,0.02272687]
[1688300566727,0.4370208,30575.0,30571.0,0.058876]
[1688300567025,0.019625,30573.0,30572.0,0.00536981]
[1688300567218,0.10419211,30573.0,30571.0,0.058876]
[1688300567422,0.10419311,30572.0,30571.0,0.058876]
[1688300567725,0.1134228,30572.0,30571.0,0.058876]
[1688300567927,0.4188228,30572.0,30571.0,0.058876]
[1688300568128,0.4188228,30572.0,30570.0,0.34951762]
[1688300568330,0.0937968,30571.0,30570.0,0.34951762]
[1688300568637,0.1134238,30571.0,30570.0,0.34951762]
[1688300575624,0.1134238,30571.0,30569.0,0.04907]
[1688300575826,0.37002969,30570.0,30569.0,0.04907]
[1688300576122,0.4742238,30570.0,30569.0,0.04907]
[1688300577330,0.4742238,30570.0,30569.0,0.05872338]
[1688300579325,0.1134238,30570.0,30569.0,0.05872338]
[1688300584633,0.08456711,30570.0,30569.0,0.05872338]
[1688300584829,0.0937968,30570.0,30569.0,0.05872338]
[1688300588236,0.1134238,30570.0,30569.0,0.05872338]
[1688300591941,0.08456711,30570.0,30569.0,0.05872338]
[1688300592945,0.0937968,30570.0,30569.0,0.05872338]
[1688300593647,0.08456711,30570.0,30569.0,0.05872338]
[1688300594331,0.0937968,30570.0,30569.0,0.05872338]
[1688300596442,0.1134238,30570.0,30569.0,0.05872338]
[1688300598648,0.0937968,30570.0,30569.0,0.00965338]
[1688300599039,0.0937968,30570.0,30567.0,0.3281]
[1688300599238,0.02661496,30571.0,30567.0,0.3281]
[1688300599239,0.0937968,30569.0,30567.0,0.3281]
[1688300599443,0.08456711,30568.0,30567.0,0.36517914]
[1688300599740,0.08456711,30570.0,30567.0,0.36517914]
[1688300599942,0.08456711,30569.0,30567.0,0.36517914]
[1688300600245,0.08456711,30568.0,30567.0,0.36517914]
[1688300600642,0.08456711,30570.0,30567.0,0.36517914]
[1688300600849,0.08456711,30570.0,30567.0,0.34694945]
[1688300601147,0.08456711,30569.0,30567.0,0.34694945]
[1688300601342,0.08456711,30568.0,30567.0,0.36517914]
[1688300601644,0.08456711,30571.0,30567.0,0.36517914]
[1688300601834,0.08456711,30570.0,30568.0,0.03707914]
[1688300602036,0.08456711,30569.0,30568.0,0.03707914]
[1688300602245,0.08456711,30569.0,30567.0,0.3281]
[1688300602449,0.08456711,30570.0,30567.0,0.36517914]
[1688300602636,0.34239671,30572.0,30567.0,0.36517914]
[1688300602637,0.08460548,30569.0,30567.0,0.36517914]
[1688300602837,0.08460552,30568.0,30567.0,0.36517914]
[1688300603038,0.08460552,30568.0,30567.0,0.72597914]
[1688300603245,0.34239671,30572.0,30567.0,0.73247914]
[1688300603444,0.08460548,30571.0,30568.0,0.01884945]
[1688300603647,0.08460548,30570.0,30567.0,0.6954]
[1688300603847,0.08460548,30569.0,30567.0,0.6954]
[1688300604042,0.03699671,30572.0,30568.0,0.01884945]
[1688300604248,0.08460523,30571.0,30567.0,0.6954]
[1688300604555,0.08460523,30570.0,30567.0,0.3346]
[1688300604752,0.08460523,30569.0,30568.0,0.39787914]
[1688300605047,0.08460523,30569.0,30568.0,0.3608]
[1688300605236,0.08460523,30571.0,30568.0,0.39787914]
[1688300605439,0.08460523,30571.0,30568.0,0.3608]
[1688300605655,0.08460523,30571.0,30569.0,0.03707914]
[1688300605846,0.08460523,30571.0,30568.0,0.3608]
[1688300606049,0.08460523,30571.0,30569.0,0.039]
[1688300606243,0.08460523,30571.0,30570.0,0.03707914]
[1688300606649,0.08460523,30571.0,30570.0,0.34117914]
[1688300607457,0.08460523,30571.0,30570.0,0.35107453]
[1688300612658,0.08460523,30571.0,30570.0,0.33284484]
[1688300613979,0.08460523,30571.0,30570.0,0.35107453]
[1688300621062,0.08460523,30571.0,30570.0,0.71187453]
[1688300625055,0.08460523,30571.0,30570.0,0.35107453]
[1688300625353,0.08460523,30571.0,30570.0,0.69364484]
[1688300625555,0.08460523,30571.0,30570.0,0.71187453]
[1688300628961,0.08460523,30571.0,30570.0,0.73150153]
[1688300629359,0.08460523,30571.0,30570.0,0.71327184]
[1688300631459,0.08460523,30571.0,30570.0,0.73150153]
[1688300631770,0.08460523,30571.0,30570.0,0.37070153]
[1688300631971,0.08460523,30571.0,30570.0,0.73150153]
[1688300641271,0.08460523,30571.0,30570.0,0.71327184]
[1688300642674,0.08460523,30571.0,30570.0,0.73150153]
[1688300642988,0.08460523,30571.0,30570.0,0.71327184]
[1688300643482,0.08460523,30571.0,30570.0,0.73150153]
[1688300651400,0.08460523,30571.0,30570.0,0.71327184]
[1688300651782,0.08460523,30571.0,30570.0,0.73150153]
[1688300660917,0.08460523,30571.0,30570.0,0.37070153]
[1688300661116,0.08460523,30571.0,30570.0,0.73150153]
[1688300665521,0.08460523,30571.0,30570.0,0.37070153]
[1688300665709,0.08460523,30571.0,30570.0,0.73150153]
[1688300666210,0.08460523,30571.0,30570.0,0.71327184]
[1688300666416,0.08460523,30571.0,30570.0,0.73150153]
[1688300672121,0.08460523,30571.0,30570.0,0.37070153]
[1688300672418,0.08460523,30571.0,30570.0,0.73150153]
[1688300675127,0.08460523,30571.0,30570.0,0.71327184]
[1688300675423,0.08460523,30571.0,30570.0,0.73150153]
[1688300676528,0.08460523,30571.0,30570.0,0.37070153]
[1688300676730,0.08460523,30571.0,30570.0,0.73150153]
[1688300679621,0.08460523,30571.0,30570.0,0.37070153]
[1688300679819,0.08460523,30571.0,30570.0,0.73150153]
[1688300680728,0.08460523,30571.0,30570.0,0.71327184]
[1688300680923,0.08460523,30571.0,30570.0,0.73150153]
[1688300682019,0.08460523,30571.0,30570.0,0.71327184]
[1688300682628,0.08460523,30571.0,30570.0,0.73150153]
[1688300683431,0.08460523,30571.0,30570.0,0.71327184]
[1688300685820,0.08460523,30571.0,30570.0,0.73150153]
[1688300686015,0.08460523,30571.0,30570.0,0.71327184]
[1688300686425,0.08460523,30571.0,30570.0,0.73150153]
[1688300690332,0.08460523,30571.0,30570.0,0.71327184]
[1688300690926,0.08460523,30571.0,30570.0,0.73150153]
[1688300691233,0.08460523,30571.0,30570.0,0.71327184]
[1688300691422,0.08460523,30571.0,30570.0,0.73150153]
[1688300693625,0.08460523,30571.0,30570.0,0.71327184]
[1688300694035,0.08460523,30571.0,30570.0,0.73150153]
[1688300694437,0.08460523,30571.0,30570.0,0.37070153]
[1688300694632,0.08460523,30571.0,30570.0,0.73150153]
[1688300695535,0.08460523,30571.0,30570.0,0.71327184]
[1688300696633,0.09383492,30571.0,30570.0,0.71327184]
[1688300696833,0.08460523,30571.0,30570.0,0.71327184]
[1688300697034,0.09383492,30571.0,30570.0,0.39032239]
[1688300698630,0.08460523,30571.0,30570.0,0.39032239]
[1688300699036,0.09383492,30571.0,30570.0,0.02952239]
[1688300699243,0.09383492,30571.0,30570.0,0.39032239]
[1688300699440,0.09383492,30571.0,30570.0,0.02952239]
[1688300699629,0.09383492,30571.0,30570.0,0.39032239]
[1688300700037,0.08460523,30571.0,30570.0,0.39032239]
[1688300702246,0.08460523,30571.0,30570.0,0.40917184]
[1688300702445,0.09383492,30571.0,30570.0,0.40917184]
[1688300704844,0.09383492,30571.0,30570.0,0.04837184]
[1688300705039,0.09383492,30571.0,30570.0,0.39032239]
[1688300705547,0.11346192,30571.0,30570.0,0.39032239]
[1688300713852,0.09383492,30571.0,30570.0,0.39032239]
[1688300717056,0.11346192,30571.0,30570.0,0.39032239]
[1688300722765,0.11346192,30571.0,30570.0,0.02952239]
[1688300726461,0.09383492,30571.0,30570.0,0.02952239]
[1688300730955,0.09383492,30571.0,30570.0,0.39032239]
[1688300731156,0.11346192,30571.0,30570.0,0.39032239]
[1688300734469,0.09383492,30571.0,30570.0,0.39032239]
[1688300735869,0.11346192,30571.0,30570.0,0.39032239]
[1688300737673,0.08460523,30571.0,30570.0,0.39032239]
[1688300738167,0.08460523,30571.0,30570.0,0.69812239]
[1688300740464,0.09383492,30571.0,30570.0,0.69812239]
[1688300740662,0.08460523,30571.0,30570.0,0.69812239]
[1688300741172,0.09383492,30571.0,30570.0,0.69812239]
[1688300741674,0.08460523,30571.0,30570.0,0.69812239]
[1688300742170,0.09383492,30571.0,30570.0,0.69812239]
[1688300743864,0.08460523,30571.0,30570.0,0.69812239]
[1688300744265,0.09383492,30571.0,30570.0,0.69812239]
[1688300744581,0.08460523,30571.0,30570.0,0.69812239]
[1688300745870,0.53217971,30572.0,30570.0,0.69812239]
[1688300746066,0.09383492,30571.0,30570.0,0.69812239]
[1688300750982,0.08460523,30571.0,30570.0,0.71697184]
[1688300754372,0.09383492,30571.0,30570.0,0.69812239]
[1688300754578,0.08460523,30571.0,30570.0,0.69812239]
[1688300756085,0.08460523,30571.0,30570.0,0.33732239]
[1688300756273,0.09383492,30571.0,30570.0,0.69812239]
[1688300757083,0.08460523,30571.0,30570.0,0.69812239]
[1688300758972,0.09383492,30571.0,30570.0,0.69812239]
[1688300759173,0.08460523,30571.0,30570.0,0.69812239]
[1688300759482,0.09383492,30571.0,30570.0,0.69812239]
[1688300759884,0.08460523,30571.0,30570.0,0.69812239]
[1688300760485,0.08460523,30571.0,30570.0,0.71697184]
[1688300760986,0.08460523,30571.0,30570.0,0.73520153]
[1688300761977,0.08460523,30571.0,30570.0,0.37440153]
[1688300762184,0.08460523,30571.0,30570.0,0.73520153]
[1688300787504,0.08460523,30571.0,30570.0,0.73489561]
[1688300788095,0.38490523,30571.0,30570.0,0.73489561]
[1688300789399,0.38490523,30571.0,30570.0,0.69781647]
[1688300790325,0.38490523,30571.0,30570.0,0.71604616]
[1688300791597,0.38490523,30571.0,30570.0,0.69781647]
[1688300793106,0.38490523,30571.0,30570.0,0.71604616]
[1688300793610,0.38490523,30571.0,30570.0,0.73489561]
[1688300796913,0.38490523,30571.0,30570.0,0.35586592]
[1688300797114,0.38490523,30571.0,30570.0,0.71666592]
[1688300798515,0.38490523,30571.0,30570.0,0.73489561]
[1688300798905,0.38490523,30571.0,30570.0,0.71666592]
[1688300799318,0.38490523,30571.0,30570.0,0.73489561]
[1688300799513,0.38490523,30571.0,30570.0,0.71666592]
[1688300800218,0.38490523,30571.0,30570.0,0.73489561]
[1688300801018,0.38490523,30571.0,30570.0,0.71666592]
[1688300801316,0.38490523,30571.0,30570.0,0.73489561]
[1688300809221,0.38490523,30571.0,30570.0,0.71666592]
[1688300809625,0.38490523,30571.0,30570.0,0.73489561]
[1688300809823,0.38490523,30571.0,30570.0,0.71666592]
[1688300810019,0.38490523,30571.0,30570.0,0.73489561]
[1688300810226,0.38490523,30571.0,30570.0,0.71666592]
[1688300811228,0.38490523,30571.0,30570.0,0.73489561]
[1688300814626,0.38490523,30571.0,30570.0,0.71666592]
[1688300815428,0.38490523,30571.0,30570.0,0.73489561]
[1688300815623,0.38490523,30571.0,30570.0,0.71666592]
[1688300816124,0.38490523,30571.0,30570.0,0.73489561]
[1688300820734,0.38490523,30571.0,30570.0,0.71666592]
[1688300821033,0.38490523,30571.0,30570.0,0.73489561]
[1688300821332,0.38490523,30571.0,30570.0,0.71666592]
[1688300822328,0.38490523,30571.0,30570.0,0.73489561]
[1688300826034,0.38490523,30571.0,30570.0,0.71666592]
[1688300826331,0.38490523,30571.0,30570.0,0.73489561]
[1688300827735,0.38490523,30571.0,30570.0,0.71666592]
[1688300827927,0.38490523,30571.0,30570.0,0.73489561]
[1688300828129,0.38490523,30571.0,30570.0,0.71666592]
[1688300828530,0.38490523,30571.0,30570.0,0.73489561]
[1688300830327,0.38490523,30571.0,30570.0,0.71666592]
[1688300831936,0.38490523,30571.0,30570.0,0.73489561]
[1688300833637,0.38490523,30571.0,30570.0,0.71666592]
[1688300837647,0.38490523,30571.0,30570.0,0.35586592]
[1688300837844,0.38490523,30571.0,30570.0,0.71666592]
[1688300839550,0.39413492,30571.0,30570.0,0.69781647]
[1688300846949,0.38490523,30571.0,30570.0,0.39001647]
[1688300849552,0.38490523,30571.0,30570.0,0.40886592]
[1688300850258,0.38490523,30571.0,30570.0,0.73986592]
[1688300851754,0.38490523,30571.0,30570.0,0.37906592]
[1688300851957,0.38490523,30571.0,30570.0,0.73986592]
[1688300854355,0.38490523,30571.0,30570.0,0.72101647]
[1688300856251,0.39413492,30571.0,30570.0,0.72101647]
[1688300857261,0.38490523,30571.0,30570.0,0.72101647]
[1688300857659,0.39413492,30571.0,30570.0,0.72101647]
[1688300857866,0.38490523,30571.0,30570.0,0.72101647]
[1688300858352,0.39413492,30571.0,30570.0,0.72101647]
[1688300858661,0.38490523,30571.0,30570.0,0.72101647]
[1688300859156,0.39413492,30571.0,30570.0,0.72101647]
[1688300859752,0.38490523,30571.0,30570.0,0.72101647]
[1688300862962,0.38490523,30571.0,30570.0,0.36021647]
[1688300863160,0.38490523,30571.0,30570.0,0.72101647]
[1688300863564,0.39413492,30571.0,30570.0,0.72101647]
[1688300864166,0.38490523,30571.0,30570.0,0.72101647]
[1688300864967,0.39413492,30571.0,30570.0,0.72101647]
[1688300865659,0.38490523,30571.0,30570.0,0.72101647]
[1688300868470,0.38277508,30571.0,30570.0,0.72101647]
[1688300870470,0.39200477,30571.0,30570.0,0.72101647]
[1688300871070,0.38277508,30571.0,30570.0,0.72101647]
[1688300872277,0.39200477,30571.0,30570.0,0.72101647]
[1688300872573,0.38277508,30571.0,30570.0,0.72101647]
[1688300874466,0.39200477,30571.0,30570.0,0.72101647]
[1688300876768,0.38277508,30571.0,30570.0,0.72101647]
[1688300877771,0.39200477,30571.0,30570.0,0.72101647]
[1688300878178,0.41163177,30571.0,30570.0,0.39001647]
[1688300878475,0.41163177,30571.0,30570.0,0.02921647]
[1688300881881,0.39200477,30571.0,30570.0,0.02921647]
[1688300887682,0.38277508,30571.0,30570.0,0.04806592]
[1688300888277,0.39200477,30571.0,30570.0,0.04806592]
[1688300888667,0.39200477,30571.0,30570.0,0.40886592]
[1688300889979,0.38277508,30571.0,30570.0,0.40886592]
[1688300890573,0.39200477,30571.0,30570.0,0.02921647]
[1688300890774,0.39200477,30571.0,30570.0,0.39001647]
[1688300891973,0.39200477,30571.0,30570.0,0.02921647]
[1688300892173,0.39200477,30571.0,30570.0,0.39001647]
[1688300892786,0.38277508,30571.0,30570.0,0.39001647]
[1688300892989,0.39200477,30571.0,30570.0,0.39001647]
[1688300893191,0.39200477,30571.0,30570.0,0.41655382]
[1688300897791,0.38277508,30571.0,30570.0,0.41655382]
[1688300898592,0.39200477,30571.0,30570.0,0.41655382]
[1688300899594,0.39200477,30571.0,30570.0,0.05575382]
[1688300899795,0.39200477,30571.0,30570.0,0.41655382]
[1688300900096,0.41163177,30571.0,30570.0,0.41655382]
[1688300901694,0.41163177,30571.0,30570.0,0.39001647]
[1688300911196,0.41163177,30571.0,30570.0,0.02921647]
[1688300918908,0.41163177,30571.0,30570.0,0.019627]
[1688300919409,0.41163177,30571.0,30570.0,0.02921505]
[1688300929402,0.39200477,30571.0,30570.0,0.02921505]
[1688300929917,0.41163177,30571.0,30570.0,0.02921505]
[1688300948530,0.80435385,30571.0,30570.0,0.02921505]
[1688300956128,0.41163177,30571.0,30570.0,0.02921505]
[1688300963241,0.80435385,30571.0,30570.0,0.02921505]
[1688300971051,0.41163177,30571.0,30570.0,0.02921505]
[1688300976848,0.11133177,30571.0,30570.0,0.02921505]
[1688300978356,0.50405385,30571.0,30570.0,0.02921505]
[1688300982059,0.81415385,30571.0,30570.0,0.02921505]
[1688300986056,0.42143177,30571.0,30570.0,0.02921505]
[1688300996082,0.40180477,30571.0,30570.0,0.02921505]
[1688300997881,0.42143177,30571.0,30570.0,0.02921505]
[1688301001279,0.81415385,30571.0,30570.0,0.02921505]
[1688301006180,0.81415385,30571.0,30570.0,0.019627]
[1688301008479,0.42143177,30571.0,30570.0,0.019627]
[1688301009589,0.40180477,30571.0,30570.0,0.019627]
[1688301010185,0.42143177,30571.0,30570.0,0.019627]
[1688301016997,0.81426701,30571.0,30570.0,0.019627]
[1688301022490,0.50416701,30571.0,30570.0,0.019627]
[1688301022699,0.48454001,30571.0,30570.0,0.019627]
[1688301022903,0.47531032,30571.0,30570.0,0.019627]
[1688301023395,0.08247508,30571.0,30570.0,0.019627]
[1688301023896,0.09170477,30571.0,30570.0,0.019627]
[1688301025393,0.08247508,30571.0,30570.0,0.019627]
[1688301025900,0.09170477,30571.0,30570.0,0.019627]
[1688301026192,0.08247508,30571.0,30570.0,0.019627]
[1688301026399,0.09170477,30571.0,30570.0,0.019627]
[1688301026800,0.11133177,30571.0,30570.0,0.019627]
[1688301031303,0.10210208,30571.0,30570.0,0.019627]
[1688301034097,0.11133177,30571.0,30570.0,0.019627]
[1688301037613,0.10210208,30571.0,30570.0,0.019627]
[1688301037915,0.11133177,30571.0,30570.0,0.019627]
[1688301038812,0.50416701,30571.0,30570.0,0.019627]
[1688301040907,0.49493732,30571.0,30570.0,0.380427]
[1688301041913,0.49493732,30571.0,30570.0,0.3902888]
[1688301042713,0.50416701,30571.0,30570.0,0.3902888]
[1688301044006,0.49493732,30571.0,30570.0,0.3902888]
[1688301044206,0.50416701,30571.0,30570.0,0.3902888]
[1688301044411,0.49493732,30571.0,30570.0,0.3902888]
[1688301044608,0.49493732,30571.0,30570.0,0.0294888]
[1688301044813,0.49493732,30571.0,30570.0,0.3902888]
[1688301046217,0.10210208,30571.0,30570.0,0.40913825]
[1688301046513,0.08247508,30571.0,30570.0,0.40913825]
[1688301047423,0.08247508,30571.0,30570.0,0.3902888]
[1688301047810,0.10210208,30571.0,30570.0,0.3902888]
[1688301048210,0.08247508,30571.0,30570.0,0.3902888]
[1688301048719,0.10210208,30571.0,30570.0,0.3902888]
[1688301049321,0.11133177,30571.0,30570.0,0.3902888]
[1688301050020,0.11133177,30571.0,30570.0,0.0294888]
[1688301050422,0.11133177,30571.0,30570.0,0.3902888]
[1688301050620,0.10210208,30571.0,30570.0,0.3902888]
[1688301050821,0.11133177,30571.0,30570.0,0.3902888]
[1688301051021,0.11133177,30571.0,30570.0,0.0294888]
[1688301051317,0.11133177,30571.0,30570.0,0.3902888]
[1688301051619,0.10210208,30571.0,30570.0,0.3902888]
[1688301052710,0.11133177,30571.0,30570.0,0.3902888]
[1688301053422,0.50416701,30571.0,30570.0,0.3902888]
[1688301053806,0.49493732,30571.0,30570.0,0.3902888]
[1688301054012,0.50416701,30571.0,30570.0,0.3902888]
[1688301054515,0.49493732,30571.0,30570.0,0.3902888]
[1688301054717,0.50416701,30571.0,30570.0,0.3902888]
[1688301059118,0.50416701,30571.0,30570.0,0.0294888]
[1688301059314,0.50416701,30571.0,30570.0,0.3902888]
[1688301060432,0.49493732,30571.0,30570.0,0.3902888]
[1688301060622,0.50416701,30571.0,30570.0,0.3902888]
[1688301061018,0.11133177,30571.0,30570.0,0.3902888]
[1688301063818,0.11133177,30571.0,30570.0,0.0294888]
[1688301068330,0.50416701,30571.0,30570.0,0.0294888]
[1688301072332,0.48454001,30571.0,30570.0,0.0294888]
[1688301075133,0.50416701,30571.0,30570.0,0.0294888]
[1688301075533,0.48454001,30571.0,30570.0,0.0294888]
[1688301076335,0.09170477,30571.0,30570.0,0.0294888]
[1688301076524,0.11133177,30571.0,30570.0,0.0294888]
[1688301077219,0.11133177,30571.0,30570.0,0.3902888]
[1688301079029,0.11133177,30571.0,30570.0,0.0294888]
[1688301083531,0.11133177,30571.0,30570.0,0.3902888]
[1688301083836,0.09170477,30571.0,30570.0,0.3902888]
[1688301085339,0.08247508,30571.0,30570.0,0.3902888]
[1688301086941,0.09170477,30571.0,30570.0,0.3902888]
[1688301087833,0.08247508,30571.0,30570.0,0.3902888]
[1688301088139,0.09170477,30571.0,30570.0,0.3902888]
[1688301089042,0.09170477,30571.0,30570.0,0.0294888]
[1688301090241,0.11133177,30571.0,30570.0,0.0294888]
[1688301090941,0.42169193,30571.0,30570.0,0.0294888]
[1688301091242,0.50416701,30571.0,30570.0,0.0294888]
[1688301095245,0.48454001,30571.0,30570.0,0.0294888]
[1688301095847,0.50416701,30571.0,30570.0,0.0294888]
[1688301098546,0.11133177,30571.0,30570.0,0.0294888]
[1688301100645,0.10210208,30571.0,30570.0,0.0294888]
[1688301100843,0.11133177,30571.0,30570.0,0.0294888]
[1688301106146,0.50416701,30571.0,30570.0,0.0294888]
[1688301108145,0.48454001,30571.0,30570.0,0.0294888]
[1688301111054,0.50416701,30571.0,30570.0,0.0294888]
[1688301112555,0.48454001,30571.0,30570.0,0.0294888]
[1688301113563,0.11133177,30571.0,30570.0,0.0294888]
[1688301128261,0.10210208,30571.0,30570.0,0.04833825]
[1688301128570,0.50416701,30571.0,30570.0,0.04833825]
[1688301129067,0.50416701,30571.0,30570.0,0.0294888]
[1688301133872,0.49493732,30571.0,30570.0,0.0294888]
[1688301134474,0.50416701,30571.0,30570.0,0.0294888]
[1688301135588,0.49493732,30571.0,30570.0,0.0294888]
[1688301136186,0.10210208,30571.0,30570.0,0.0294888]
[1688301136586,0.11133177,30571.0,30570.0,0.0294888]
[1688301137587,0.09170477,30571.0,30570.0,0.0294888]
[1688301138783,0.11133177,30571.0,30570.0,0.0294888]
[1688301143395,0.50416701,30571.0,30570.0,0.0294888]
[1688301147901,0.49493732,30571.0,30570.0,0.04833825]
[1688301150604,0.49493732,30571.0,30570.0,0.0294888]
[1688301151098,0.11133177,30571.0,30570.0,0.0294888]
[1688301151298,0.10210208,30571.0,30570.0,0.0294888]
[1688301153402,0.11133177,30571.0,30570.0,0.0294888]
[1688301154403,0.10210208,30571.0,30570.0,0.0294888]
[1688301154703,0.11133177,30571.0,30570.0,0.0294888]
[1688301155095,0.10210208,30571.0,30570.0,0.0294888]
[1688301155496,0.11133177,30571.0,30570.0,0.0294888]
[1688301155898,0.10210208,30571.0,30570.0,0.0294888]
[1688301157006,0.11133177,30571.0,30570.0,0.0294888]
[1688301158707,0.50416701,30571.0,30570.0,0.0294888]
[1688301160412,0.49493732,30571.0,30570.0,0.0294888]
[1688301160597,0.50416701,30571.0,30570.0,0.0294888]
[1688301164215,0.49493732,30571.0,30570.0,0.0294888]
[1688301164713,0.50416701,30571.0,30570.0,0.0294888]
[1688301165016,0.49493732,30571.0,30570.0,0.0294888]
[1688301166113,0.08247508,30571.0,30570.0,0.04833825]
[1688301166518,0.08247508,30571.0,30570.0,0.06656794]
[1688301167713,0.08247508,30571.0,30570.0,0.42736794]
[1688301179131,0.08247508,30571.0,30570.0,0.06656794]
[1688301179519,0.08247508,30571.0,30570.0,0.42736794]
[1688301180817,0.08247508,30571.0,30570.0,0.40913825]
[1688301181326,0.41883195,30572.0,30570.0,0.42736794]
[1688301181532,0.08247508,30571.0,30570.0,0.40913825]
[1688301181724,0.47531032,30571.0,30570.0,0.40913825]
[1688301181925,0.39283524,30571.0,30570.0,0.42736794]
[1688301182319,0.08247508,30571.0,30570.0,0.42736794]
[1688301183027,0.39283524,30572.0,30570.0,0.42736794]
[1688301183229,0.08247508,30571.0,30570.0,0.42736794]
[1688301183423,0.39283524,30572.0,30570.0,0.42736794]
[1688301183627,0.08247508,30571.0,30570.0,0.42736794]
[1688301183827,0.39283524,30572.0,30570.0,0.42736794]
[1688301184031,0.08247508,30571.0,30570.0,0.40913825]
[1688301184334,0.08247508,30571.0,30570.0,0.3902888]
[1688301184633,0.40206493,30571.0,30570.0,0.3902888]
[1688301184827,0.48454001,30571.0,30570.0,0.3902888]
[1688301185127,0.47531032,30571.0,30570.0,0.3902888]
[1688301187726,0.47531032,30571.0,30570.0,0.42736794]
[1688301187926,0.08247508,30571.0,30570.0,0.42736794]
[1688301188140,0.39283524,30572.0,30570.0,0.42736794]
[1688301188441,0.08247508,30571.0,30570.0,0.3902888]
[1688301189129,0.08247508,30571.0,30570.0,0.42736794]
[1688301189825,0.08247508,30573.0,30570.0,0.42736794]
[1688301190034,0.08247508,30572.0,30571.0,0.3608]
[1688301190237,0.019626,30573.0,30572.0,0.019626]
[1688301190428,0.11346071,30573.0,30572.0,0.019626]
[1688301190633,0.11346071,30573.0,30572.0,0.02943959]
[1688301191433,0.10423102,30573.0,30572.0,0.02943959]
[1688301192436,0.10423102,30573.0,30572.0,0.06651873]
[1688301193131,0.10423102,30573.0,30572.0,0.04828904]
[1688301194533,0.10423102,30573.0,30572.0,0.02943959]
[1688301195934,0.10423102,30573.0,30572.0,0.04766928]
[1688301196327,0.08460502,30573.0,30572.0,0.04766928]
[1688301196535,0.08460502,30573.0,30572.0,0.06651873]
[1688301197136,0.08460502,30573.0,30572.0,0.04766928]
[1688301197439,0.08460502,30573.0,30572.0,0.02943959]
[1688301198539,0.08460502,30573.0,30572.0,0.06651873]
[1688301198740,0.08460502,30573.0,30572.0,0.04828904]
[1688301200344,0.08460502,30573.0,30572.0,0.06651873]
[1688301200731,0.08460502,30573.0,30572.0,0.04828904]
[1688301200932,0.08460502,30573.0,30572.0,0.40908904]
[1688301201132,0.08460502,30573.0,30572.0,0.06651873]
[1688301201334,0.08460502,30573.0,30572.0,0.40908904]
[1688301201540,0.08460502,30573.0,30572.0,0.42731873]
[1688301205038,0.08460502,30573.0,30572.0,0.06651873]
[1688301205244,0.08460502,30573.0,30572.0,0.42731873]
[1688301205645,0.08460502,30573.0,30572.0,0.06651873]
[1688301206045,0.08460502,30573.0,30572.0,0.42731873]
[1688301209136,0.08460502,30573.0,30572.0,0.06651873]
[1688301209343,0.10423002,30573.0,30572.0,0.02943959]
[1688301209845,0.10423002,30573.0,30572.0,0.04766928]
[1688301210448,0.10423002,30573.0,30572.0,0.06651873]
[1688301211036,0.08460502,30573.0,30572.0,0.06651873]
[1688301212247,0.08460502,30573.0,30572.0,0.42731873]
[1688301212649,0.08460502,30573.0,30572.0,0.39023959]
[1688301213042,0.08460502,30573.0,30572.0,0.40846928]
[1688301214952,0.08460502,30573.0,30572.0,0.42731873]
[1688301215651,0.08460502,30573.0,30572.0,0.40908904]
[1688301215851,0.08460502,30573.0,30572.0,0.39023959]
[1688301216849,0.05149828,30573.0,30572.0,0.40846928]
[1688301217152,0.05149828,30573.0,30572.0,0.42731873]
[1688301217658,0.05149828,30573.0,30572.0,0.06651873]
[1688301217951,0.05149828,30573.0,30572.0,0.40908904]
[1688301218158,0.05149828,30573.0,30572.0,0.06651873]
[1688301218754,0.05149828,30573.0,30572.0,0.42731873]
[1688301222063,0.05149828,30573.0,30572.0,0.06651873]
[1688301222252,0.05149828,30573.0,30572.0,0.42731873]
[1688301222449,0.05149828,30573.0,30572.0,0.06651873]
[1688301222651,0.05149828,30573.0,30572.0,0.42731873]
[1688301223149,0.05149828,30573.0,30572.0,0.06651873]
[1688301223346,0.05149828,30573.0,30572.0,0.42731873]
[1688301223854,0.05149828,30573.0,30572.0,0.06651873]
[1688301224149,0.05149828,30573.0,30572.0,0.42731873]
[1688301233168,0.05149828,30573.0,30572.0,0.06651873]
[1688301233463,0.05149828,30573.0,30572.0,0.42731873]
[1688301239372,0.05149828,30573.0,30572.0,0.06651873]
[1688301246577,0.05149828,30573.0,30572.0,0.42731873]
[1688301248782,0.39282638,30573.0,30572.0,0.42731873]
[1688301248978,0.44432466,30573.0,30572.0,0.06651873]
[1688301249168,0.39282638,30573.0,30572.0,0.42731873]
[1688301249568,0.44432466,30573.0,30572.0,0.42731873]
[1688301249975,0.39282638,30573.0,30572.0,0.42731873]
[1688301250971,0.44432466,30573.0,30572.0,0.42731873]
[1688301251372,0.39282638,30573.0,30572.0,0.42731873]
[1688301251790,0.44432466,30573.0,30572.0,0.42731873]
[1688301252174,0.05149828,30573.0,30572.0,0.42731873]
[1688301252479,0.47061791,30574.0,30572.0,0.42731873]
[1688301252780,0.05149828,30573.0,30572.0,0.39023959]
[1688301252979,0.47061791,30574.0,30572.0,0.42731873]
[1688301253280,0.05149828,30573.0,30572.0,0.40908904]
[1688301253482,0.05149828,30573.0,30572.0,0.42731873]
[1688301254386,0.47061791,30574.0,30572.0,0.42731873]
[1688301254578,0.47061791,30574.0,30573.0,0.039]
[1688301254780,0.47061791,30574.0,30573.0,0.41802969]
[1688301254986,0.47061791,30574.0,30573.0,0.46630042]
[1688301256378,0.07779153,30574.0,30573.0,0.46630042]
[1688301259085,0.07779153,30574.0,30573.0,0.10550042]